Cogmind - Beta 13 *** ADVENTURER MODE // 2024.02.26 @ 22:10:29 Player: gex Result: Self-destructed Performance ------------- Evolutions (2) 1000 Regions Visited (3) 600 Robots Destroyed (34) 170 Value Destroyed (542) 542 Prototype IDs (1) 20 Alien Tech Used (0) 0 Bonus (0) 0 TOTAL SCORE: 2332 Bonus ------- None Cogmind --------- Core Integrity 481/550 Matter 298/300 Energy 205/250 System Corruption 1% Temperature Cool (12) Movement Flying (110) Ox1 Location -8/Materials Parts ------- > --- POWER (2) -------- Ion Engine > --- PROPULSION (4) --- Improved Flight Unit > --- UTILITY (3) ------ Small Storage Unit Hacking Suite Hacking Suite > --- WEAPON (2) ------- (None) > --- INVENTORY (8) ---- Armored Wheel Flight Unit Heat Sink Structural Scanner Improved Signal Interpreter Improved Terrain Scanner Seismic Detector Peak State ------------ > --- POWER ------------ Ion Engine Light Ion Engine > --- PROPULSION ------- Flight Unit VTOL Module VTOL Module Improved Flight Unit > --- UTILITY ---------- Small Storage Unit Hacking Suite Hacking Suite > --- WEAPON ----------- Small Laser EMP Blaster > --- INVENTORY -------- Armored Wheel Flight Unit Heat Sink Structural Scanner Improved Signal Interpreter Improved Terrain Scanner Seismic Detector Small Laser [Rating: 21] Favorites ----------- Power Ion Engine Engine Ion Engine Propulsion Flight Unit Leg Aluminum Leg Hover Unit Improved Hover Unit Flight Unit Flight Unit Utility Seismic Detector Device Seismic Detector Storage Small Storage Unit Hackware Hacking Suite Weapon Small Laser Energy Gun Small Laser Launcher Grenade Launcher Build | -11 -10 -9 -8 ------- Run | Yrd Mat Mat Mat Slots Evolved 4 | . . 2 2 Power 1 | . . . 1 Propulsion 2 | . . 2 . Utility 1 | . . . 1 Weapon . | . . . . Parts Attached 41 | 9 8 16 8 Power 5 | 2 1 1 1 Engine 5 | 2 1 1 1 Core . | . . . . Reactor . | . . . . Propulsion 17 | 2 5 7 3 Treads . | . . . . Leg 3 | 2 1 . . Wheel . | . . . . Hover 1 | . . 1 . Flight 13 | . 4 6 3 Utility 10 | 3 1 5 1 Device 4 | 2 1 1 . Storage 4 | 1 . 3 . Processor . | . . . . Hackware 2 | . . 1 1 Protection . | . . . . Artifact . | . . . . Weapon 9 | 2 1 3 3 Energy Gun 6 | 2 . 3 1 Energy Cannon . | . . . . Ballistic Gun . | . . . . Ballistic Cannon . | . . . . Launcher 3 | . 1 . 2 Special Weapon . | . . . . Impact Weapon . | . . . . Slashing Weapon . | . . . . Piercing Weapon . | . . . . Special Melee Weapon . | . . . . Unidentified Prototypes 1 | . . 1 . Parts Lost 5 | . . . 5 Power 1 | . . . 1 Propulsion 3 | . . . 3 Utility . | . . . . Weapon 1 | . . . 1 Highest Loss Streak 5 | . . . 5 To Critical Strikes . | . . . . Average Slot Usage (%) 95 | . 94 99 92 Engine 13 | . 14 11 17 Leg 9 | . 20 . . Flight 24 | . 6 43 30 Device 10 | . 14 9 . Storage 11 | . 13 10 9 Hackware 3 | . . 1 18 Energy Gun 20 | . 21 21 15 Launcher 1 | . 3 . 1 Naked Turns . | . . . . Heaviest Build 18 | 13 15 18 17 Greatest Support 20 | 20 20 17 17 Greatest Overweight (x) 3 | 1 1 3 1 Average Overweight (x) . | . . . . Largest Inventory Capacity 10 | 8 8 10 8 Average Capacity 8 | 7 7 9 8 Most Carried 8 | 7 8 8 8 Average Carried 6 | 5 7 5 7 Final Capacity 8 | 8 5 8 8 Final Carried 8 | 7 5 8 7 Class Distribution -------------------- 49% | Mutant 27% | Scavenger-Sprinter 12% | Hacker-Sprinter 8% | Hacker-Mutant 3% | Scavenger-Mutant Dominant Class ---------------- Mutant | -10/Materials Scavenger-Sprinter | -9/Materials Hacker-Mutant | -8/Materials Resources | -11 -10 -9 -8 ----------- Run | Yrd Mat Mat Mat Matter Collected 634 | 290 85 165 94 Remotely . | . . . . Salvage Created 879 | 181 353 220 125 Parts 69 | 18 27 12 12 Haulers Intercepted . | . . . . Recyclers Shooed 1 | . 1 . . Parts Field Recycled . | . . . . Retrieved Matter . | . . . . Parts Self-Destructed . | . . . . Prevented . | . . . . Kills | -11 -10 -9 -8 ------- Run | Yrd Mat Mat Mat Combat Hostiles Destroyed 18 | . 11 3 4 Guns 16 | . 10 2 4 AOE 1 | . 1 . . Classes Destroyed 9 | 3 3 2 1 Worker 3 | 2 . . 1 Builder 2 | . 2 . . Tunneler 5 | 5 . . . Recycler 4 | 1 1 1 1 Operator 1 | . . . 1 Watcher 1 | . . 1 . Swarmer 12 | . 8 . 4 Grunt 5 | . 3 2 . Sentry 1 | . . 1 . Best Kill Streak 6 | 3 6 2 4 Combat Bots Only 6 | . 6 2 4 Max Kills in Single Turn 2 | 1 1 1 2 Gunslinging . | . . . . Exploded 1 | . 1 . . Melee . | . . . . Uniques/NPCs Destroyed . | . . . . Combat | -11 -10 -9 -8 -------- Run | Yrd Mat Mat Mat Hostile Shots Fired 70 | . 37 13 20 Missed 32 | . 16 6 10 Damage Taken 513 | . 134 82 297 Core 136 | . 43 24 69 Absorbed by Shields . | . . . . Ignored by Resistances 150 | . 45 24 81 Regen/Repaired (Parts) 37 | . 16 . 21 Core Remaining (%) 92 | 100 82 94 . Volleys Fired 73 | 17 31 15 10 Largest 2 | 2 2 2 2 Hottest 80 | 80 80 80 80 Shots Fired 123 | 31 47 30 15 Gun 116 | 31 45 30 10 Cannon . | . . . . Launcher 7 | . 2 . 5 Special . | . . . . Kinetic . | . . . . Thermal 116 | 31 45 30 10 Explosive 2 | . 2 . . Electromagnetic 5 | . . . 5 Robot Hit Streak 12 | 12 12 9 7 Robot Miss Streak 2 | 1 2 1 1 Penetration Max . | . . . . Secondary Targets . | . . . . Shots Hit Robots 86 | 16 33 25 12 Core Hits 42 | 9 18 9 6 Critical Kills . | . . . . Critical Parts Destroyed . | . . . . Critical Strikes . | . . . . Melee Attacks . | . . . . Impact . | . . . . Slashing . | . . . . Piercing . | . . . . Sneak Attacks . | . . . . Combat Hostiles . | . . . . Follow-up Attacks . | . . . . Damage Inflicted 1171 | 171 420 279 301 Guns 911 | 171 375 279 86 Cannons . | . . . . Explosions 260 | . 45 . 215 Melee . | . . . . Ramming . | . . . . Kinetic . | . . . . Thermal 911 | 171 375 279 86 Explosive 154 | . 45 . 109 Electromagnetic 106 | . . . 106 Impact . | . . . . Slashing . | . . . . Piercing . | . . . . Highest Corruption 1 | . . . 1 Average Corruption 1 | . . . 1 Corruption Purged . | . . . . Corruption Blocked . | . . . . Overload Shots . | . . . . Overflow Damage 41 | . . . 41 Projectiles . | . . . . Explosions 41 | . . . 41 Melee . | . . . . Knockbacks . | . . . . Impact . | . . . . Kinetic . | . . . . Secondary . | . . . . Self-Inflicted Damage 217 | . . . 217 Shots 6 | . . . 6 Rammed . | . . . . Targets Rammed . | . . . . Kicked . | . . . . Crushed . | . . . . Highest Temperature 171 | 90 120 171 135 Average Temperature 43 | 30 35 55 57 Received Heat Transfer 108 | . 36 45 27 Siege Activations . | . . . . Robots Corrupted . | . . . . Combat Hostiles . | . . . . Parts Fried . | . . . . Impact Corruptions . | . . . . Robots Melted 1 | . . 1 . Combat Hostiles 1 | . . 1 . Parts Melted 2 | 2 . . . Heat Transferred 2075 | 400 850 625 200 Parts Sabotaged . | . . . . Parts Stolen . | . . . . Parts Stripped . | . . . . Power Chain Reactions 1 | . . . 1 Alert | -11 -10 -9 -8 ------- Run | Yrd Mat Mat Mat Peak Influence 309 | 40 309 153 274 Initial 55 | . 22 55 22 Average 83 | 19 101 73 112 Maximum Alert Level 1 | . 1 . 1 Low Security (%) 95 | 100 89 100 94 Level 1 4 | . 10 . 5 Level 2 . | . . . . Level 3 . | . . . . Level 4 . | . . . . Level 5 . | . . . . High Security . | . . . . Max Security . | . . . . Squads Dispatched 3 | . 1 1 1 Investigation 2 | . 1 1 . Extermination . | . . . . Reinforcement . | . . . . Assault . | . . . . Garrison 1 | . . . 1 Intercept . | . . . . Searches Triggered . | . . . . Construction Impeded . | . . . . Haulers Reinforced . | . . . . Active Scanning Responses . | . . . . Cargo Convoy Interrupts . | . . . . Stealth | -11 -10 -9 -8 --------- Run | Yrd Mat Mat Mat Distress Signals 1 | . . 1 . Communications Jammed . | . . . . Distress Signals . | . . . . Times Spotted 29 | . 12 6 11 Peak Tracking Total 7 | . 3 2 7 Tactical Retreats 4 | . 1 2 1 Traps | -11 -10 -9 -8 ------- Run | Yrd Mat Mat Mat Traps Triggered 1 | . 1 . . Indirectly . | . . . . Trap Hack Attempts . | . . . . Triggered . | . . . . Disarmed . | . . . . Reprogrammed . | . . . . Reused . | . . . . Traps Extracted . | . . . . Installed . | . . . . Triggered . | . . . . Machines | -11 -10 -9 -8 ---------- Run | Yrd Mat Mat Mat Machines Disabled 9 | . 1 . 8 Max in Single Turn 6 | . 1 . 6 Machines Repaired . | . . . . Machines Dismantled . | . . . . Machines Sabotaged . | . . . . Overloaded Fab Kills . | . . . . Hacking | -11 -10 -9 -8 --------- Run | Yrd Mat Mat Mat Machines Accessed 6 | . 3 2 1 Terminals 4 | . 2 2 . Fabricators . | . . . . Repair Stations 2 | . 1 . 1 Recycling Units . | . . . . Scanalyzers . | . . . . Garrison Access . | . . . . Total Hacks 17 | . 8 5 4 Successful 12 | . 4 4 4 Failed 5 | . 4 1 . Catastrophic 1 | . . 1 . Database Lockouts . | . . . . Manual . | . . . . Terminals 9 | . 4 5 . Fabricators . | . . . . Repair Stations 8 | . 4 . 4 Recycling Units . | . . . . Scanalyzers . | . . . . Garrison Access . | . . . . Terminal Hacks 4 | . . 4 . Record 2 | . . 2 . Dispatch Records 1 | . . 1 . Recall Investigation 1 | . . 1 . Fabricator Hacks . | . . . . Repair Station Hacks 8 | . 4 . 4 Scan Component 4 | . 2 . 2 Repair 4 | . 2 . 2 Recycling Unit Hacks . | . . . . Scanalyzer . | . . . . Garrison Access Hacks . | . . . . Unauthorized Hacks . | . . . . Terminals . | . . . . Fabricators . | . . . . Repair Stations . | . . . . Recycling Units . | . . . . Scanalyzers . | . . . . Garrison Access . | . . . . Data Cores Recovered . | . . . . Used . | . . . . Hacking Detections 5 | . 2 2 1 Full Trace Events 1 | . . 1 . Feedback Events . | . . . . Feedback Blocked . | . . . . Robot Schematics Acquired . | . . . . Robots Built . | . . . . Authchips . | . . . . Time . | . . . . Total Robot Build Rating . | . . . . Part Schematics Acquired . | . . . . Parts Built . | . . . . Authchips . | . . . . Time . | . . . . Total Part Build Rating . | . . . . Parts Repaired 4 | . 2 . 2 Time 135 | . 52 . 83 Parts Recycled . | . . . . Recycled Matter . | . . . . Retrieved Matter . | . . . . Retrieved Components . | . . . . Parts Scanalyzed . | . . . . Part Schematics Acquired . | . . . . Parts Damaged . | . . . . Bothacking | -11 -10 -9 -8 ------------ Run | Yrd Mat Mat Mat Used RIF Installer . | . . . . Robots Hacked . | . . . . Non-combat . | . . . . Combat . | . . . . Robot Hacks Applied . | . . . . Relay Couplers Released . | . . . . Fabnet Peak Effective % . | . . . . Robots Rewired . | . . . . Allies Hacked . | . . . . Hacks Repelled . | . . . . Allies | -11 -10 -9 -8 -------- Run | Yrd Mat Mat Mat Total Allies . | . . . . Largest Group . | . . . . Highest-Rated Group . | . . . . Highest-Rated Ally . | . . . . Total Orders . | . . . . Ally Attacks . | . . . . Total Damage . | . . . . Kills . | . . . . Allies Corrupted . | . . . . Allies Melted . | . . . . Intel | -11 -10 -9 -8 ------- Run | Yrd Mat Mat Mat Robot Analysis Total . | . . . . Derelict Logs Recovered . | . . . . Drone Launches . | . . . . Drone Recoveries . | . . . . Exploration | -11 -10 -9 -8 ------------- Run | Yrd Mat Mat Mat Turns Passed 1390 | 164 553 474 199 Spaces Moved 1079 | 82 340 403 254 Core 15 | 14 . 1 . Treads . | . . . . Legs 324 | 68 256 . . Wheels . | . . . . Hover . | . . . . Flight 740 | . 84 402 254 Fastest Speed 28 | 50 37 28 28 Average Speed 65 | 109 115 37 28 Slowest Speed 200 | 120 120 200 109 Overloaded Moves . | . . . . Propulsion Burnouts . | . . . . Robots Hopped 1 | . . . 1 Cave-ins Triggered . | . . . . Exploration Rate (%) 19 | 5 30 23 20 Regions Visited 3 Branch Regions . Pre-discovered Areas . | . . . . Known Exits Taken . | . . . . Unknown Exits Taken 3 | 1 1 1 . Scrap Searched . | . . . . Spaces Dug . | . . . . Terrain Destroyed 71 | . 7 . 64 Melee . | . . . . Projectile . | . . . . AOE 71 | . 7 . 64 Terrain Rammed . | . . . . Walls Destroyed . | . . . . Machines Disabled . | . . . . Actions | -11 -10 -9 -8 --------- Run | Yrd Mat Mat Mat Total 1633 | 124 454 692 363 Wait 390 | 2 57 246 85 Move 1074 | 81 339 402 252 Hop 1 | . . . 1 Pick Up 29 | 12 8 6 3 Fast Attach 14 | 4 3 4 3 Attach 14 | 3 2 6 3 Detach 4 | . 1 3 . Swap 13 | 2 3 6 2 Drop 21 | 3 10 4 4 Fire 73 | 17 31 15 10 Melee . | . . . . Ram . | . . . . Kick . | . . . . Crush . | . . . . Escape Stasis . | . . . . Rewire . | . . . . Trap . | . . . . Miscellaneous . | . . . . Route ------- -11/Scrapyard -10/Materials -9/Materials (discovered 2 exits: *Mat / [*Min]) -8/Materials (discovered 1 exit: [*Sto]) History --------- Turn | Location | Event 9 | -11/Scrapyard | Discovered new exit (range 16) 165 | -11/Scrapyard | Entered Materials 305 | -10/Materials | Discovered new exit (range 10) 309 | -10/Materials | Build established: Mutant 660 | -10/Materials | Repaired Flight Unit 687 | -10/Materials | Repaired Flight Unit 718 | -10/Materials | Entered another Materials area 718 | -9/Materials | Evolved 2 slots: Propulsion x2 774 | -9/Materials | Discovered new exit (range 16) 998 | -9/Materials | Build established: Scavenger-Sprinter 1191 | -9/Materials | Discovered new exit (range 3) 1192 | -9/Materials | Entered another Materials area 1192 | -8/Materials | Evolved 2 slots: Power x1, Utility x1 1260 | -8/Materials | Repaired VTOL Module 1312 | -8/Materials | Repaired Imp. Flight Unit 1379 | -8/Materials | Discovered new exit (range 13) 1387 | -8/Materials | Garrison activated, responded to threat 1391 | -8/Materials | Self-destructed Last Messages --------------- 01381_ Door malfunctions. 01381_ Nuclear Reactor explodes. 01381_ Terminal disabled. 01381_ Destroyed Datajack. 01381_ O-16 Technician destroyed. 01381_ Nuclear Reactor explodes. 01381_ VTOL Module destroyed. 01381_ Destroyed VTOL Module. 01381_ Flight Unit destroyed. 01381_ Destroyed Flight Unit. 01382_ The unstable cave ceiling collapses. 01387_ Y-45 Defender calls for garrison reinforcements. 01387_ ALERT: Activating Garrison Access M001. [Achievement: Troublemaker] 01389_ Chain reaction triggered in Lgt. Ion Engine. 01389_ VTOL Module destroyed. 01389_ Destroyed VTOL Module. 01390_ The unstable cave ceiling collapses. 01391_ Nuclear Reactor explodes. 01391_ EMP Blaster destroyed. Map ----- +----------------------------------------------------+ | ?????????????????????????????????? | | ?????????????????????????????????? | | ?????????????????????????????????? | | ?????????????????????????????????? | | ?????????????????????????????????? | | ?????????????????????????????????? | | ?????????????????????????????????? | | ?????????????????????????????????? | | ?????????????????????????????????? | | ?????????????????????????????????? | | ?????????????????????????????????? | | ?????????????????????????????????? | | ?????????????????????????????????? | | ?????????????????????????????????? | | ?????????????????????????????????? | | ?????????????????????????????????? | | ????##???????????????????????????? | | ##### #####??????????????????????? | | # ###????????????????????? | | #????????????????????? | | ##???????????????????? | | Y = #???????????????????? | | #???????????????????? | | ########????????????? | | #?????####???? | | @[ ##### ???? | | g ???? | | g < ??? | | ????? | | #####????????? | | #????????????? | | ! # ##/####????????????? | | # #????????????? | | #% #????????????? | | # #! #????????????? | | ###### """ # #????????????? | | ?????# """g # " " #????????????? | | ?????#! """ # """ #????????????? | | ?????# g # """ #????????????? | | ???#######+### "" #????????????? | | ???# + """ #????????????? | | ???# ##### ### "" #????????????? | | ?###+##### #?# """ #????????????? | | ?#[[ ## #?# " #????????????? | | ?#! !## #?# #????????????? | | ?# """ ## ##########????????????? | | ?# """ # ######???????????????? | | ?# """ + #????????? | | ?# # ## #????????? | | ?###+########?? ?????????????????? | +----------------------------------------------------+ Best States ------------- Heat Dissipation 31 Energy Generation 15 Energy Capacity 275 Matter Stores 300 Matter Capacity 300 Sight Range 16 Terrain Scan Range 16 Terrain Scan Density 10 Resistance: KI 20 Resistance: TH 20 Resistance: EX 20 Resistance: EM 20 Resistance: I 20 Resistance: S 20 Resistance: P 20 Evasion (%) 64 Offensive Hacking 30 Item Schematics ----------------- None Robot Schematics ------------------ None Fabricated ------------ Nothing Alien Tech Used ----------------- None Achievements -------------- Troublemaker Challenges ------------ None Game ------ Seed LightningTimingSteel Manual? 0 Play Time 00:37:37 Cumulative 10.2 hours Start 2024.02.26 @ 21:03:21 End 2024.02.26 @ 22:10:29 Sessions 8 Manual Loads 0 Difficulty Adventurer Special Mode None Game No. 9 Rogue 4 Adventurer 5 Explorer 0 Win Type - Total 0 Types 0/0/0/0/0/0/0/0/0 Lore% 14 Gallery% 9 Achievement% 10 Wizard Run 0 Options --------- Layout 0 ASCII 0 Keyboard 0 Movement Mouse Keybinds 0 Fullscreen 2 Font 24/Terminus Map View 76x50 Zoom Use 0% Tactical HUD 1 Map Filters NONE Filters NONE Steam 1 RUN: 96ef2a99-e41c-4778-9ef0-0fded5ccb049